[Event "Betsys MČR v online bleskovém šachu 2021"]
[Site "Chess.com"]
[Date "2021.04.17"]
[Round "12"]
[White "bezzuton"]
[Black "Staci_fiknout_Navara_Plat"]
[Result "1-0"]
[WhiteElo "1596"]
[BlackElo "1864"]
[TimeControl "180+1"]
[EndTime "11:01:07 PDT"]
[Termination "Uživatel bezzuton zvítězil na čas"]

1. d4 {[%clk 0:02:53.5]} 1... c5 {[%clk 0:02:59.6]} 2. dxc5 {[%clk 0:02:52.5]}
2... e6 {[%clk 0:02:57.9]} 3. Bf4 {[%clk 0:02:51.1]} 3... Bxc5 {[%clk
0:02:56.8]} 4. Bd6 {[%clk 0:02:49.9]} 4... Bxd6 {[%clk 0:02:56.6]} 5. Qxd6
{[%clk 0:02:46.9]} 5... Qe7 {[%clk 0:02:57]} 6. Qxe7+ {[%clk 0:02:45.1]} 6...
Nxe7 {[%clk 0:02:57.9]} 7. Nc3 {[%clk 0:02:44.5]} 7... a6 {[%clk 0:02:46]} 8.
Ne4 {[%clk 0:02:42.9]} 8... d5 {[%clk 0:02:45.9]} 9. Nd6+ {[%clk 0:02:42.7]}
9... Kd7 {[%clk 0:02:43.1]} 10. Nxf7 {[%clk 0:02:40.6]} 10... Rf8 {[%clk
0:02:41.3]} 11. Ng5 {[%clk 0:02:39.2]} 11... h6 {[%clk 0:02:40.7]} 12. N5f3
{[%clk 0:02:38.9]} 12... Nbc6 {[%clk 0:02:39.9]} 13. e3 {[%clk 0:02:37.8]} 13...
b5 {[%clk 0:02:39.8]} 14. Rd1 {[%clk 0:02:32.3]} 14... Bb7 {[%clk 0:02:38.2]}
15. Bd3 {[%clk 0:02:20.6]} 15... Nb4 {[%clk 0:02:31.9]} 16. a3 {[%clk
0:02:10.6]} 16... Nbc6 {[%clk 0:02:27.7]} 17. Ne2 {[%clk 0:02:08.4]} 17... Rac8
{[%clk 0:02:26.8]} 18. e4 {[%clk 0:02:07.8]} 18... Na5 {[%clk 0:01:57.1]} 19.
exd5 {[%clk 0:01:59]} 19... Bxd5 {[%clk 0:01:39.8]} 20. Be4 {[%clk 0:01:54.4]}
20... Ke8 {[%clk 0:01:33.8]} 21. Bxd5 {[%clk 0:01:49.6]} 21... Nxd5 {[%clk
0:01:27.4]} 22. Ned4 {[%clk 0:01:48]} 22... Rf6 {[%clk 0:01:12]} 23. O-O {[%clk
0:01:38.5]} 23... Nb6 {[%clk 0:00:49.2]} 24. Rfe1 {[%clk 0:01:32.9]} 24... Ke7
{[%clk 0:00:46.8]} 25. b3 {[%clk 0:01:17.5]} 25... Nd7 {[%clk 0:00:39]} 26. Ne5
{[%clk 0:01:11.6]} 26... Nxe5 {[%clk 0:00:31.8]} 27. Rxe5 {[%clk 0:01:07]} 27...
Rd8 {[%clk 0:00:28]} 28. Ree1 {[%clk 0:00:40.7]} 28... Rd6 {[%clk 0:00:21.6]}
29. g4 {[%clk 0:00:34.7]} 29... Nb7 {[%clk 0:00:19.2]} 30. Nf5+ {[%clk
0:00:31.1]} 30... Kd7 {[%clk 0:00:12.7]} 31. Nxd6 {[%clk 0:00:29.9]} 31... Nxd6
{[%clk 0:00:13.6]} 32. Rd2 {[%clk 0:00:29.8]} 32... Ke7 {[%clk 0:00:10.1]} 33.
Kg2 {[%clk 0:00:25]} 33... g5 {[%clk 0:00:08.6]} 34. f3 {[%clk 0:00:22.5]} 34...
Nf7 {[%clk 0:00:04.4]} 35. Re3 {[%clk 0:00:19.5]} 35... e5 {[%clk 0:00:02.1]}
36. Rc3 {[%clk 0:00:18.5]} 1-0

[Event "Betsys MČR v online bleskovém šachu 2021"]
[Site "Chess.com"]
[Date "2021.04.17"]
[Round "12"]
[White "Federer302"]
[Black "valid88"]
[Result "1-0"]
[WhiteElo "1587"]
[BlackElo "1364"]
[TimeControl "180+1"]
[EndTime "11:01:07 PDT"]
[Termination "Uživatel Federer302 zvítězil na čas"]

1. e4 {[%clk 0:03:00.9]} 1... c6 {[%clk 0:02:51.7]} 2. Nf3 {[%clk 0:02:59.2]}
2... d5 {[%clk 0:02:50.9]} 3. exd5 {[%clk 0:02:56.7]} 3... cxd5 {[%clk
0:02:50.9]} 4. d4 {[%clk 0:02:56.2]} 4... Bg4 {[%clk 0:02:48.9]} 5. Bb5+ {[%clk
0:02:51.3]} 5... Nc6 {[%clk 0:02:45.9]} 6. O-O {[%clk 0:02:49.3]} 6... a6 {[%clk
0:02:43.4]} 7. Bxc6+ {[%clk 0:02:43.9]} 7... bxc6 {[%clk 0:02:41.8]} 8. h3
{[%clk 0:02:44.8]} 8... Bh5 {[%clk 0:02:38.5]} 9. c3 {[%clk 0:02:42.2]} 9... e6
{[%clk 0:02:35.8]} 10. Qa4 {[%clk 0:02:33.3]} 10... Qc7 {[%clk 0:02:28]} 11. Ne5
{[%clk 0:02:31.6]} 11... Ne7 {[%clk 0:02:14.9]} 12. Bf4 {[%clk 0:02:28.7]} 12...
Qc8 {[%clk 0:02:05.8]} 13. Re1 {[%clk 0:02:00.5]} 13... f6 {[%clk 0:01:52.2]}
14. Nd3 {[%clk 0:01:58.7]} 14... g5 {[%clk 0:01:01]} 15. Bg3 {[%clk 0:01:58.5]}
15... Bg6 {[%clk 0:00:56.4]} 16. Nc5 {[%clk 0:01:53]} 16... Bf7 {[%clk
0:00:45.4]} 17. Nd2 {[%clk 0:01:38.6]} 17... Nf5 {[%clk 0:00:42.3]} 18. Bh2
{[%clk 0:01:26.6]} 18... Bxc5 {[%clk 0:00:39.6]} 19. dxc5 {[%clk 0:01:26.5]}
19... O-O {[%clk 0:00:39.4]} 20. Qg4 {[%clk 0:00:51.7]} 20... h5 {[%clk
0:00:21.6]} 21. Qf3 {[%clk 0:00:49.1]} 21... Qd8 {[%clk 0:00:17.3]} 22. Bd6
{[%clk 0:00:38.6]} 22... Re8 {[%clk 0:00:12.5]} 23. b4 {[%clk 0:00:34]} 23...
Nh4 {[%clk 0:00:11]} 24. Qd3 {[%clk 0:00:30.5]} 24... Kg7 {[%clk 0:00:09.5]} 25.
Bg3 {[%clk 0:00:26.4]} 25... Nf5 {[%clk 0:00:08.6]} 26. Nf3 {[%clk 0:00:24.2]}
26... Bg6 {[%clk 0:00:07.8]} 27. Qd2 {[%clk 0:00:21.5]} 27... Nxg3 {[%clk
0:00:07.5]} 28. fxg3 {[%clk 0:00:21.4]} 28... Qc7 {[%clk 0:00:06.7]} 29. Qf2
{[%clk 0:00:12.7]} 29... e5 {[%clk 0:00:04.6]} 30. Rad1 {[%clk 0:00:11.3]} 30...
e4 {[%clk 0:00:04.5]} 31. Nd2 {[%clk 0:00:11.1]} 31... f5 {[%clk 0:00:03.7]} 32.
c4 {[%clk 0:00:10.6]} 32... dxc4 {[%clk 0:00:03.1]} 33. Nxc4 {[%clk 0:00:10]}
33... Kh6 {[%clk 0:00:02.6]} 34. Nd6 {[%clk 0:00:08.8]} 1-0

[Event "Betsys MČR v online bleskovém šachu 2021"]
[Site "Chess.com"]
[Date "2021.04.17"]
[Round "12"]
[White "HonzaRubes95"]
[Black "TerezaRodshtein"]
[Result "1/2-1/2"]
[WhiteElo "2459"]
[BlackElo "2189"]
[TimeControl "180+1"]
[EndTime "11:01:09 PDT"]
[Termination "Remíza patem"]

1. Nf3 {[%clk 0:03:00.9]} 1... d5 {[%clk 0:02:59.4]} 2. c4 {[%clk 0:02:59.6]}
2... c6 {[%clk 0:02:46.9]} 3. e3 {[%clk 0:02:57.9]} 3... Nf6 {[%clk 0:02:45.4]}
4. Nc3 {[%clk 0:02:57.9]} 4... e6 {[%clk 0:02:38.5]} 5. b3 {[%clk 0:02:53.7]}
5... Be7 {[%clk 0:02:34.6]} 6. Bb2 {[%clk 0:02:53.6]} 6... Nbd7 {[%clk
0:02:32.3]} 7. Qc2 {[%clk 0:02:50.7]} 7... b6 {[%clk 0:02:24.4]} 8. g4 {[%clk
0:02:31.3]} 8... h6 {[%clk 0:02:07.4]} 9. Rg1 {[%clk 0:02:30.4]} 9... Bb7 {[%clk
0:02:05.5]} 10. Be2 {[%clk 0:02:28.8]} 10... c5 {[%clk 0:02:00.5]} 11. O-O-O
{[%clk 0:02:20.6]} 11... Ne4 {[%clk 0:01:25.3]} 12. Nxe4 {[%clk 0:01:49]} 12...
dxe4 {[%clk 0:01:26.2]} 13. Ne5 {[%clk 0:01:44.3]} 13... Nxe5 {[%clk 0:01:20]}
14. Bxe5 {[%clk 0:01:45.2]} 14... Bf6 {[%clk 0:01:20.2]} 15. Qc3 {[%clk
0:01:44.5]} 15... Bxe5 {[%clk 0:01:17.2]} 16. Qxe5 {[%clk 0:01:44.4]} 16... Qf6
{[%clk 0:01:17.3]} 17. Qxf6 {[%clk 0:01:40.8]} 17... gxf6 {[%clk 0:01:16.9]} 18.
d4 {[%clk 0:01:38.5]} 18... exd3 {[%clk 0:00:59.4]} 19. Rxd3 {[%clk 0:01:37.5]}
19... Ke7 {[%clk 0:00:55.8]} 20. Rgd1 {[%clk 0:01:36.6]} 20... Rhd8 {[%clk
0:00:54.6]} 21. Rxd8 {[%clk 0:01:34.3]} 21... Rxd8 {[%clk 0:00:54.2]} 22. Rxd8
{[%clk 0:01:35.2]} 22... Kxd8 {[%clk 0:00:54.8]} 23. Kd2 {[%clk 0:01:30.9]}
23... Ke7 {[%clk 0:00:55]} 24. f3 {[%clk 0:01:11.7]} 24... Kd6 {[%clk
0:00:54.6]} 25. Kd3 {[%clk 0:01:07.4]} 25... Ke5 {[%clk 0:00:52.8]} 26. h4
{[%clk 0:01:01.6]} 26... f5 {[%clk 0:00:31.8]} 27. f4+ {[%clk 0:01:01.9]} 27...
Kf6 {[%clk 0:00:31.2]} 28. g5+ {[%clk 0:01:02.4]} 28... hxg5 {[%clk 0:00:30.9]}
29. fxg5+ {[%clk 0:01:02.4]} 29... Kg6 {[%clk 0:00:30.6]} 30. Kc3 {[%clk
0:01:00.3]} 30... e5 {[%clk 0:00:30.2]} 31. b4 {[%clk 0:01:00.5]} 31... f4
{[%clk 0:00:28.5]} 32. exf4 {[%clk 0:01:00.3]} 32... exf4 {[%clk 0:00:28.8]} 33.
bxc5 {[%clk 0:01:00.2]} 33... bxc5 {[%clk 0:00:28.7]} 34. Kd3 {[%clk 0:00:58.9]}
34... f3 {[%clk 0:00:25.3]} 35. Bf1 {[%clk 0:00:55.6]} 35... Kh5 {[%clk
0:00:25.6]} 36. Ke3 {[%clk 0:00:56.2]} 36... Kxh4 {[%clk 0:00:25.8]} 37. Kf4
{[%clk 0:00:56.8]} 37... f2 {[%clk 0:00:20.4]} 38. a3 {[%clk 0:00:47.9]} 38...
Bc6 {[%clk 0:00:20.7]} 39. Kf5 {[%clk 0:00:42.6]} 39... Kg3 {[%clk 0:00:18.9]}
40. Kf6 {[%clk 0:00:40.7]} 40... Bg2 {[%clk 0:00:17]} 41. Bd3 {[%clk 0:00:40.7]}
41... f1=Q+ {[%clk 0:00:13.9]} 42. Bxf1 {[%clk 0:00:40.5]} 42... Bxf1 {[%clk
0:00:14.8]} 43. Kxf7 {[%clk 0:00:41.4]} 43... Bxc4+ {[%clk 0:00:15.4]} 44. Kf6
{[%clk 0:00:41.7]} 44... Bd3 {[%clk 0:00:15.5]} 45. Ke5 {[%clk 0:00:41.6]} 45...
c4 {[%clk 0:00:15.5]} 46. Kd4 {[%clk 0:00:41.9]} 46... Kh4 {[%clk 0:00:14.6]}
47. g6 {[%clk 0:00:42.1]} 47... Bxg6 {[%clk 0:00:13.6]} 48. Kxc4 {[%clk
0:00:42.6]} 48... Kg5 {[%clk 0:00:14]} 49. Kc3 {[%clk 0:00:43.4]} 49... Kf6
{[%clk 0:00:14.9]} 50. Kb2 {[%clk 0:00:44.1]} 50... Ke5 {[%clk 0:00:15.4]} 51.
Ka1 {[%clk 0:00:45]} 51... Kd4 {[%clk 0:00:16.3]} 52. a4 {[%clk 0:00:45.9]}
52... Kc4 {[%clk 0:00:16.6]} 53. a5 {[%clk 0:00:46.8]} 53... Kb5 {[%clk
0:00:15.6]} 54. a6 {[%clk 0:00:47.7]} 54... Kxa6 {[%clk 0:00:15.8]} 55. Kb2
{[%clk 0:00:48.2]} 55... Kb5 {[%clk 0:00:16.5]} 56. Ka1 {[%clk 0:00:49.1]} 56...
a5 {[%clk 0:00:17.1]} 57. Kb2 {[%clk 0:00:49.6]} 57... a4 {[%clk 0:00:18]} 58.
Ka1 {[%clk 0:00:50.5]} 58... Kb4 {[%clk 0:00:18.9]} 59. Kb2 {[%clk 0:00:50.8]}
59... a3+ {[%clk 0:00:19.8]} 60. Ka1 {[%clk 0:00:51.7]} 60... Kb3 {[%clk
0:00:20.1]} 1/2-1/2

[Event "Betsys MČR v online bleskovém šachu 2021"]
[Site "Chess.com"]
[Date "2021.04.17"]
[Round "12"]
[White "Jakuboss22005"]
[Black "Petroniuss"]
[Result "1-0"]
[WhiteElo "2090"]
[BlackElo "2196"]
[TimeControl "180+1"]
[EndTime "11:01:09 PDT"]
[Termination "Uživatel Jakuboss22005 zvítězil na čas"]

1. b3 {[%clk 0:03:00.9]} 1... e5 {[%clk 0:02:59.5]} 2. Bb2 {[%clk 0:03:00.4]}
2... d6 {[%clk 0:03:00.1]} 3. e3 {[%clk 0:02:59.7]} 3... Nd7 {[%clk 0:03:00.7]}
4. c4 {[%clk 0:02:58.4]} 4... Ngf6 {[%clk 0:03:01.2]} 5. Nc3 {[%clk 0:02:58.4]}
5... g6 {[%clk 0:03:01.7]} 6. Be2 {[%clk 0:02:54.1]} 6... Bg7 {[%clk 0:03:02.2]}
7. h4 {[%clk 0:02:54.1]} 7... h5 {[%clk 0:03:01]} 8. Nh3 {[%clk 0:02:53.5]} 8...
O-O {[%clk 0:03:00.3]} 9. Ng5 {[%clk 0:02:53.5]} 9... Nc5 {[%clk 0:02:59.1]} 10.
Qc2 {[%clk 0:02:48.7]} 10... Ne6 {[%clk 0:02:43.9]} 11. O-O-O {[%clk 0:02:42.9]}
11... c6 {[%clk 0:02:34.3]} 12. Bf3 {[%clk 0:02:08.9]} 12... Nxg5 {[%clk
0:02:24]} 13. hxg5 {[%clk 0:02:08.4]} 13... Nh7 {[%clk 0:02:24.4]} 14. Ne4
{[%clk 0:02:02.4]} 14... d5 {[%clk 0:02:05.5]} 15. Nf6+ {[%clk 0:02:00.9]} 15...
Nxf6 {[%clk 0:01:58.9]} 16. gxf6 {[%clk 0:01:57.3]} 16... Bxf6 {[%clk
0:01:59.8]} 17. Bxh5 {[%clk 0:01:18.2]} 17... gxh5 {[%clk 0:01:59.4]} 18. Rxh5
{[%clk 0:01:17.2]} 18... e4 {[%clk 0:01:47.3]} 19. Rdh1 {[%clk 0:01:13.7]} 19...
Bg4 {[%clk 0:00:35.8]} 20. Rh8+ {[%clk 0:01:06.9]} 20... Kg7 {[%clk 0:00:35.4]}
21. R8h7+ {[%clk 0:00:53.4]} 21... Kg8 {[%clk 0:00:29.4]} 22. Rh8+ {[%clk
0:00:53.3]} 22... Kg7 {[%clk 0:00:29.7]} 23. R1h7+ {[%clk 0:00:45.6]} 23... Kg6
{[%clk 0:00:26.8]} 24. Rh6+ {[%clk 0:00:45.6]} 24... Kg7 {[%clk 0:00:15.3]} 25.
Bxf6+ {[%clk 0:00:33]} 25... Qxf6 {[%clk 0:00:14.7]} 26. Rxf6 {[%clk 0:00:33.2]}
26... Rxh8 {[%clk 0:00:15.2]} 27. Qc3 {[%clk 0:00:30.2]} 27... Kg8 {[%clk
0:00:11.4]} 28. f3 {[%clk 0:00:26.2]} 28... exf3 {[%clk 0:00:05]} 29. gxf3
{[%clk 0:00:27.1]} 29... Bh5 {[%clk 0:00:05.5]} 30. Kb2 {[%clk 0:00:24]} 30...
Bg6 {[%clk 0:00:05.3]} 31. Rf4 {[%clk 0:00:15.3]} 31... Rh1 {[%clk 0:00:03]} 32.
Rg4 {[%clk 0:00:14.2]} 32... Kh7 {[%clk 0:00:02.5]} 33. f4 {[%clk 0:00:10.3]}
1-0

[Event "Betsys MČR v online bleskovém šachu 2021"]
[Site "Chess.com"]
[Date "2021.04.17"]
[Round "12"]
[White "Danyjel"]
[Black "matej-c"]
[Result "0-1"]
[WhiteElo "1694"]
[BlackElo "1943"]
[TimeControl "180+1"]
[EndTime "11:01:09 PDT"]
[Termination "Uživatel matej-c zvítězil na čas"]

1. e4 {[%clk 0:03:00.6]} 1... c6 {[%clk 0:03:00.1]} 2. d4 {[%clk 0:03:00]} 2...
d5 {[%clk 0:03:01]} 3. exd5 {[%clk 0:02:59.4]} 3... cxd5 {[%clk 0:03:01.9]} 4.
c4 {[%clk 0:02:58.8]} 4... Nf6 {[%clk 0:03:02.4]} 5. Nc3 {[%clk 0:02:58.1]} 5...
g6 {[%clk 0:03:02.7]} 6. Nf3 {[%clk 0:02:57.3]} 6... Bg7 {[%clk 0:03:02.6]} 7.
h3 {[%clk 0:02:54.7]} 7... O-O {[%clk 0:03:02]} 8. Be3 {[%clk 0:02:54.4]} 8...
Nc6 {[%clk 0:02:59]} 9. c5 {[%clk 0:02:53.9]} 9... Ne4 {[%clk 0:02:58.2]} 10.
Be2 {[%clk 0:02:49.8]} 10... Nxc3 {[%clk 0:02:52.8]} 11. bxc3 {[%clk 0:02:49.1]}
11... e5 {[%clk 0:02:52.1]} 12. O-O {[%clk 0:02:45.1]} 12... e4 {[%clk
0:02:52.1]} 13. Nd2 {[%clk 0:02:38.7]} 13... f5 {[%clk 0:02:52.6]} 14. Bf4
{[%clk 0:02:31.4]} 14... g5 {[%clk 0:02:48]} 15. Bd6 {[%clk 0:02:30.9]} 15...
Re8 {[%clk 0:02:48.2]} 16. Bh5 {[%clk 0:02:01.8]} 16... Re6 {[%clk 0:02:40.6]}
17. Qc2 {[%clk 0:01:27.6]} 17... Rh6 {[%clk 0:02:38.6]} 18. Be2 {[%clk
0:01:23.9]} 18... f4 {[%clk 0:02:33]} 19. Bg4 {[%clk 0:01:17.8]} 19... Bxg4
{[%clk 0:02:30.4]} 20. hxg4 {[%clk 0:01:17.5]} 20... Qd7 {[%clk 0:02:12.9]} 21.
Qb3 {[%clk 0:01:17.4]} 21... Qxg4 {[%clk 0:01:56]} 22. Qxd5+ {[%clk 0:01:11.7]}
22... Kh8 {[%clk 0:01:55.9]} 23. Nxe4 {[%clk 0:01:03.5]} 23... Qh4 {[%clk
0:01:35.3]} 24. f3 {[%clk 0:01:03]} 24... Re8 {[%clk 0:01:25.2]} 25. Qxg5 {[%clk
0:00:58.1]} 25... Qh2+ {[%clk 0:01:16.6]} 26. Kf2 {[%clk 0:00:57.6]} 26... Rg6
{[%clk 0:01:16.6]} 27. Qxf4 {[%clk 0:00:50.1]} 27... Rxg2+ {[%clk 0:01:03.7]}
28. Ke1 {[%clk 0:00:38.9]} 28... Re2+ {[%clk 0:00:50]} 29. Kd1 {[%clk
0:00:38.7]} 29... Qg2 {[%clk 0:00:39.8]} 30. Re1 {[%clk 0:00:09.8]} 30... Rxe1+
{[%clk 0:00:24.5]} 31. Kxe1 {[%clk 0:00:09.3]} 31... Qg1+ {[%clk 0:00:20.5]} 32.
Ke2 {[%clk 0:00:06.9]} 32... Qxa1 {[%clk 0:00:20.5]} 33. Qf7 {[%clk 0:00:07]}
33... Qb2+ {[%clk 0:00:17.1]} 34. Kd3 {[%clk 0:00:05]} 34... Qb1+ {[%clk
0:00:13.4]} 0-1

[Event "Betsys MČR v online bleskovém šachu 2021"]
[Site "Chess.com"]
[Date "2021.04.17"]
[Round "12"]
[White "LiborRojar"]
[Black "KatkaZ"]
[Result "1/2-1/2"]
[WhiteElo "2065"]
[BlackElo "1852"]
[TimeControl "180+1"]
[EndTime "11:01:10 PDT"]
[Termination "Remíza dohodou"]

1. e4 {[%clk 0:03:00.9]} 1... c5 {[%clk 0:02:59.7]} 2. c3 {[%clk 0:03:00.7]}
2... e6 {[%clk 0:03:00.1]} 3. d4 {[%clk 0:03:00.7]} 3... d5 {[%clk 0:03:00]} 4.
e5 {[%clk 0:03:00.9]} 4... cxd4 {[%clk 0:02:59.1]} 5. cxd4 {[%clk 0:02:59.2]}
5... a6 {[%clk 0:02:59.5]} 6. Nf3 {[%clk 0:02:57.8]} 6... Nc6 {[%clk 0:02:59.1]}
7. Bd3 {[%clk 0:02:56.7]} 7... Nge7 {[%clk 0:02:59]} 8. O-O {[%clk 0:02:56.3]}
8... Ng6 {[%clk 0:02:59.1]} 9. Nc3 {[%clk 0:02:55.9]} 9... b5 {[%clk 0:02:57.6]}
10. a3 {[%clk 0:02:55.1]} 10... Be7 {[%clk 0:02:56.5]} 11. Re1 {[%clk 0:02:51]}
11... O-O {[%clk 0:02:55.7]} 12. Be3 {[%clk 0:02:43.5]} 12... b4 {[%clk
0:02:54.8]} 13. Ne2 {[%clk 0:02:33.4]} 13... bxa3 {[%clk 0:02:54]} 14. bxa3
{[%clk 0:02:33.7]} 14... Bd7 {[%clk 0:02:47.8]} 15. g3 {[%clk 0:02:28.9]} 15...
Qa5 {[%clk 0:02:46.2]} 16. h4 {[%clk 0:02:18.8]} 16... Rfb8 {[%clk 0:02:43.5]}
17. h5 {[%clk 0:02:18.2]} 17... Nf8 {[%clk 0:02:42.4]} 18. h6 {[%clk 0:02:02.6]}
18... g6 {[%clk 0:02:38.8]} 19. Bg5 {[%clk 0:01:51.7]} 19... Qd8 {[%clk
0:02:23.9]} 20. Bxe7 {[%clk 0:01:47.4]} 20... Qxe7 {[%clk 0:02:23.5]} 21. Qd2
{[%clk 0:01:42.4]} 21... Rb3 {[%clk 0:02:16.8]} 22. Nh2 {[%clk 0:01:29.1]} 22...
Rxa3 {[%clk 0:02:15.9]} 23. Rxa3 {[%clk 0:01:28.6]} 23... Qxa3 {[%clk 0:02:15]}
24. Ng4 {[%clk 0:01:27.1]} 24... Qe7 {[%clk 0:01:55.7]} 25. Rb1 {[%clk
0:01:13.9]} 25... Be8 {[%clk 0:01:52.6]} 26. Nf6+ {[%clk 0:01:06.4]} 26... Kh8
{[%clk 0:01:50.7]} 27. Rb6 {[%clk 0:00:54.9]} 27... a5 {[%clk 0:01:43.4]} 28.
Qc3 {[%clk 0:00:47.4]} 28... Nb4 {[%clk 0:01:42]} 29. Bb1 {[%clk 0:00:36.9]}
29... Nd7 {[%clk 0:01:40]} 30. Rb7 {[%clk 0:00:32]} 30... Qf8 {[%clk 0:01:32.7]}
31. Nxd7 {[%clk 0:00:30.7]} 31... Bxd7 {[%clk 0:01:31.8]} 32. Rxd7 {[%clk
0:00:30.8]} 32... Qxh6 {[%clk 0:01:31.2]} 33. Nf4 {[%clk 0:00:27.9]} 33... Rf8
{[%clk 0:01:24.7]} 34. Qc5 {[%clk 0:00:25.2]} 34... Qg5 {[%clk 0:01:17.6]} 35.
Qxa5 {[%clk 0:00:23.2]} 35... Nc6 {[%clk 0:01:16.9]} 36. Qc7 {[%clk 0:00:21.8]}
36... Nxd4 {[%clk 0:01:15.3]} 37. Bd3 {[%clk 0:00:18.7]} 37... Nf3+ {[%clk
0:01:13.4]} 38. Kg2 {[%clk 0:00:19]} 38... Ne1+ {[%clk 0:01:13.1]} 39. Kg1
{[%clk 0:00:16.9]} 39... Nxd3 {[%clk 0:01:12.2]} 40. Nxd3 {[%clk 0:00:16.8]}
40... Qf5 {[%clk 0:01:10.5]} 41. Nf4 {[%clk 0:00:15.1]} 41... Qb1+ {[%clk
0:01:09.8]} 42. Kg2 {[%clk 0:00:14.7]} 42... Qe4+ {[%clk 0:01:08.4]} 43. Kg1
{[%clk 0:00:14.2]} 43... Qf5 {[%clk 0:01:06.7]} 44. Ne2 {[%clk 0:00:11.8]} 44...
h5 {[%clk 0:01:05.4]} 45. Nd4 {[%clk 0:00:11.5]} 45... Qb1+ {[%clk 0:01:03.5]}
46. Kg2 {[%clk 0:00:11.2]} 46... Qe4+ {[%clk 0:01:03.3]} 47. Nf3 {[%clk
0:00:10.2]} 47... g5 {[%clk 0:01:01.5]} 48. Rxf7 {[%clk 0:00:08.6]} 48... Rxf7
{[%clk 0:01:01.1]} 49. Qxf7 {[%clk 0:00:08.5]} 49... g4 {[%clk 0:00:59.4]} 50.
Qxh5+ {[%clk 0:00:08.1]} 50... Kg7 {[%clk 0:00:58.9]} 51. Qg5+ {[%clk
0:00:07.4]} 51... Kf7 {[%clk 0:00:58.1]} 52. Qf6+ {[%clk 0:00:07.4]} 52... Kg8
{[%clk 0:00:57.8]} 53. Qf4 {[%clk 0:00:06.8]} 53... gxf3+ {[%clk 0:00:54.1]} 54.
Qxf3 {[%clk 0:00:06.2]} 54... Qxe5 {[%clk 0:00:52.3]} 55. Qg4+ {[%clk
0:00:06.3]} 55... Kf7 {[%clk 0:00:51.5]} 1/2-1/2

[Event "Betsys MČR v online bleskovém šachu 2021"]
[Site "Chess.com"]
[Date "2021.04.17"]
[Round "12"]
[White "domecek"]
[Black "Devasales"]
[Result "0-1"]
[WhiteElo "1957"]
[BlackElo "1844"]
[TimeControl "180+1"]
[EndTime "11:01:10 PDT"]
[Termination "Uživatel Devasales zvítězil na čas"]

1. d4 {[%clk 0:02:58.8]} 1... d5 {[%clk 0:02:59.3]} 2. Nf3 {[%clk 0:02:58.3]}
2... Nf6 {[%clk 0:02:57.6]} 3. g3 {[%clk 0:02:58.3]} 3... e6 {[%clk 0:02:57.2]}
4. Bg2 {[%clk 0:02:58]} 4... c5 {[%clk 0:02:51.1]} 5. e3 {[%clk 0:02:56.9]} 5...
Nc6 {[%clk 0:02:46.3]} 6. O-O {[%clk 0:02:55.8]} 6... cxd4 {[%clk 0:02:45.5]} 7.
exd4 {[%clk 0:02:55.3]} 7... Be7 {[%clk 0:02:43.6]} 8. b3 {[%clk 0:02:51.9]}
8... O-O {[%clk 0:02:39.1]} 9. Bb2 {[%clk 0:02:52]} 9... Bd7 {[%clk 0:02:38.6]}
10. Nbd2 {[%clk 0:02:51.9]} 10... b5 {[%clk 0:02:31.4]} 11. Qe2 {[%clk
0:02:50.9]} 11... a6 {[%clk 0:02:28.9]} 12. Rfd1 {[%clk 0:02:49.2]} 12... Qc7
{[%clk 0:02:26]} 13. c4 {[%clk 0:02:48]} 13... bxc4 {[%clk 0:02:17.1]} 14. bxc4
{[%clk 0:02:47]} 14... Rab8 {[%clk 0:02:01.3]} 15. Rab1 {[%clk 0:02:46.2]} 15...
Bb4 {[%clk 0:01:51.5]} 16. c5 {[%clk 0:02:30.3]} 16... Ba5 {[%clk 0:01:28.8]}
17. Nb3 {[%clk 0:02:24.1]} 17... Ne4 {[%clk 0:01:22.5]} 18. Qxa6 {[%clk
0:02:07.5]} 18... Ra8 {[%clk 0:00:54.4]} 19. Qe2 {[%clk 0:01:56.1]} 19... Rfb8
{[%clk 0:00:53]} 20. Nxa5 {[%clk 0:01:46]} 20... Nxa5 {[%clk 0:00:51.3]} 21. Qc2
{[%clk 0:01:33.5]} 21... Nc4 {[%clk 0:00:47.7]} 22. Bc1 {[%clk 0:01:19.2]} 22...
Ba4 {[%clk 0:00:35.3]} 23. Rb3 {[%clk 0:01:08.6]} 23... Bxb3 {[%clk 0:00:31.9]}
24. axb3 {[%clk 0:01:09.5]} 24... Na5 {[%clk 0:00:30.9]} 25. Rd3 {[%clk
0:01:04.2]} 25... Nc6 {[%clk 0:00:23.6]} 26. Ne1 {[%clk 0:00:56.4]} 26... Nb4
{[%clk 0:00:18.3]} 27. Qe2 {[%clk 0:00:51.5]} 27... Nxd3 {[%clk 0:00:17.7]} 28.
Qxd3 {[%clk 0:00:50.9]} 28... Qb7 {[%clk 0:00:17.3]} 29. Bf4 {[%clk 0:00:42]}
29... Rc8 {[%clk 0:00:16.3]} 30. Nc2 {[%clk 0:00:14.9]} 30... Ra3 {[%clk
0:00:15.4]} 31. f3 {[%clk 0:00:03.1]} 31... Rxb3 {[%clk 0:00:14.5]} 32. Qe2
{[%clk 0:00:03.3]} 32... Rb1+ {[%clk 0:00:13.6]} 33. Bf1 {[%clk 0:00:01.9]}
33... Nc3 {[%clk 0:00:12.3]} 34. Qd3 {[%clk 0:00:01.4]} 34... Nd1 {[%clk
0:00:11.2]} 0-1